Workbook

Sheet 封面
A3: 模拟信号转换配置
B8: 填写说明：
B9: 1.此配置工具包含多个页面，应切换各个页面，将需要的所有的通道全部妥善配置
B10: 2.全局设置符合应用环境，所有通道均正确配置的情况下，点击“生成配置文件”按钮完成配置
B15: 全局设置
B16: 参考电压 | C16: 5 | D16: V
B17: 转换服务调用周期 | C17: 2 | D17: ms
B18: 最大转换时间 | C18: 10 | D18: ms
B19: 上电稳定时间 | C19: 10 | D19: ms
B21: 工程师 | C21: ShiHao

Sheet 电压测量通道
A1: 电压测量通道
A2: 所有通道全部配置完成后，转到封面页点击“生成配置文件”按钮
A3: 1
D4: 使用此通道
C5: 通道名称 | G5: ADC_CH_KL30_VOLTAGE
Q6: *测量得到的电压值单位为mV
C8: 被测电压信号
S11: MCU
M13: R1
M14: 330
N16: R3
N17: 4.7
W18: =INDEX(Parameters!$D$3:$D$18,Summary!$D2) -> AN2
M23: R2 | U23: 校正
M24: 100
H28: GND
A30: 2
D31: 使用此通道
C32: 通道名称 | G32: ADC_CH_AIR_BAG_LED
Q33: *测量得到的电压值单位为mV
C35: 被测电压信号
S38: MCU
M40: R1
M41: 0
N43: R3
N44: 4.7
W45: =INDEX(Parameters!$D$3:$D$18,Summary!$D3) -> AN0
M50: R2 | U50: 校正
M51: 10 | V51: 0
H55: GND
A57: 3
D58: 使用此通道
C59: 通道名称 | G59: ADC_CH_KL15_VOLTAGE
Q60: *测量得到的电压值单位为mV
C62: 被测电压信号
S65: MCU
M67: R1
M68: 330
N70: R3
N71: 4.7
W72: =INDEX(Parameters!$D$3:$D$18,Summary!$D4) -> AN3
M77: R2 | U77: 校正
M78: 100 | V78: 0
H82: GND
A84: 4
D85: 使用此通道
C86: 通道名称 | G86: ADC_CH_FUEL_VREF
Q87: *测量得到的电压值单位为mV
C89: 被测电压信号
S92: MCU
M94: R1
M95: 0
N97: R3
N98: 4.7
W99: =INDEX(Parameters!$D$3:$D$18,Summary!$D5) -> AN7
M104: R2 | U104: 校正
M105: 0 | V105: 0
H109: GND
A111: 5
D112: 使用此通道
C113: 通道名称 | G113: ADC_CH_FUEL1
Q114: *测量得到的电压值单位为mV
C116: 被测电压信号
S119: MCU
M121: R1
M122: 27
N124: R3
N125: 3.9
W126: =INDEX(Parameters!$D$3:$D$18,Summary!$D6) -> AN5
M131: R2 | U131: 校正
M132: 18 | V132: 0
H136: GND
A138: 6
D139: 使用此通道
C140: 通道名称 | G140: ADC_CH_GEAR
Q141: *测量得到的电压值单位为mV
C143: 被测电压信号
S146: MCU
M148: R1
M149: 0
N151: R3
N152: 33
W153: =INDEX(Parameters!$D$3:$D$18,Summary!$D7) -> AN6
M158: R2 | U158: 校正
M159: 300 | V159: 0
H163: GND
A165: 7
D166: 使用此通道
C167: 通道名称 | G167: ADCH_TEST
Q168: *测量得到的电压值单位为mV
C170: 被测电压信号
S173: MCU
M175: R1
M176: 27
N178: R3
N179: 3.9
W180: =INDEX(Parameters!$D$3:$D$18,Summary!$D8) -> AN7
M185: R2 | U185: 校正
M186: 18 | V186: 0
H190: GND
A192: 8
D193: 使用此通道
C194: 通道名称
Q195: *测量得到的电压值单位为mV
C197: 被测电压信号
S200: MCU
M202: R1
M203: 33
N205: R3
N206: 3.3
W207: =INDEX(Parameters!$D$3:$D$18,Summary!$D9) -> AN0
M212: R2 | U212: 校正
M213: 10 | V213: 0
H217: GND
A219: 9
D220: 使用此通道
C221: 通道名称
Q222: *测量得到的电压值单位为mV
C224: 被测电压信号
S227: MCU
M229: R1
M230: 33
N232: R3
N233: 3.3
W234: =INDEX(Parameters!$D$3:$D$18,Summary!$D10) -> AN0
M239: R2 | U239: 校正
M240: 10 | V240: 0
H244: GND
A246: 10
D247: 使用此通道
C248: 通道名称
Q249: *测量得到的电压值单位为mV
C251: 被测电压信号
S254: MCU
M256: R1
M257: 33
N259: R3
N260: 3.3
W261: =INDEX(Parameters!$D$3:$D$18,Summary!$D11) -> AN0
M266: R2 | U266: 校正
M267: 10 | V267: 0
H271: GND

Sheet 普通低端电阻测量通道
A1: 普通低端电阻测量通道
A2: 所有通道全部配置完成后，转到封面页点击“生成配置文件”按钮
A3: 1
D4: 使用此通道
C5: 通道名称 | I5: ADC_CH_FUEL1 | AG5: 电阻值输出单位
K7: 参考电源选择 | V7: =IF(Summary!$F12=2,"通道名称","电压") -> 通道名称 | Z7: ADC_CH_FUEL_VREF | AN7: =IF(Summary!$F12=2,"","mV") -> 
AA8: (参考电源选择为VREF时此格无效)
AM11: MCU
U13: R4
U14: 50
K16: R5 | W16: R1 | AH16: R3
K17: 30 | W17: 0 | AH17: 4.7
AQ18: =INDEX(Parameters!$D$3:$D$18,Summary!$D12) -> AN5
G21: =IF(LEN(普通低端电阻测量通道!$Z$250)>0,UPPER(普通低端电阻测量通道!$Z$250),"") -> 
AG23: R2 | AO23: 校正
C24: 被测电阻信号 | AG24: 0
E28: GND | AB28: GND
A30: 2
D31: 使用此通道
C32: 通道名称 | I32: ADC_CH_COOLANT_TEMP1_R | AG32: 电阻值输出单位
K34: 参考电源选择 | V34: =IF(Summary!$F13=2,"通道名称","电压") -> 通道名称 | Z34: ADC_CH_FUEL_VREF | AN34: =IF(Summary!$F13=2,"","mV") -> 
AA35: (参考电源选择为VREF时此格无效)
AM38: MCU
U40: R4
U41: 50
K43: R5 | W43: R1 | AH43: R3
K44: 0 | W44: 0 | AH44: 4.7
AQ45: =INDEX(Parameters!$D$3:$D$18,Summary!$D13) -> AN6
AG50: R2 | AO50: 校正
C51: 被测电阻信号 | AG51: 0 | AP51: 0
E55: GND | AB55: GND
A57: 3
D58: 使用此通道
C59: 通道名称 | I59: ADC_CH_COOLANT_TEMP2_R | AG59: 电阻值输出单位
K61: 参考电源选择 | V61: =IF(Summary!$F14=2,"通道名称","电压") -> 电压 | Z61: 5000 | AN61: =IF(Summary!$F14=2,"","mV") -> mV
AA62: (参考电源选择为VREF时此格无效)
AM65: MCU
U67: R4
U68: 20
K70: R5 | W70: R1 | AH70: R3
K71: 0 | W71: 0 | AH71: 1
AQ72: =INDEX(Parameters!$D$3:$D$18,Summary!$D14) -> AN6
AG77: R2 | AO77: 校正
C78: 被测电阻信号 | AG78: 0 | AP78: 0
E82: GND | AB82: GND
A84: 4
D85: 使用此通道
C86: 通道名称 | I86: ADC_CH_FUEL2_R | AG86: 电阻值输出单位
K88: 参考电源选择 | V88: =IF(Summary!$F15=2,"通道名称","电压") -> 通道名称 | Z88: ADC_CH_FUEL2_REF_V | AN88: =IF(Summary!$F15=2,"","mV") -> 
AA89: (参考电源选择为VREF时此格无效)
AM92: MCU
U94: R4
U95: 120
K97: R5 | W97: R1 | AH97: R3
K98: 0 | W98: 27 | AH98: 3.3
AQ99: =INDEX(Parameters!$D$3:$D$18,Summary!$D15) -> AN15
AG104: R2 | AO104: 校正
C105: 被测电阻信号 | AG105: 18 | AP105: 0
E109: GND | AB109: GND
A111: 5
D112: 使用此通道
C113: 通道名称 | AG113: 电阻值输出单位
K115: 参考电源选择 | V115: =IF(Summary!$F16=2,"通道名称","电压") -> 电压 | AN115: =IF(Summary!$F16=2,"","mV") -> mV
AA116: (参考电源选择为VREF时此格无效)
AM119: MCU
U121: R4
U122: 120
K124: R5 | W124: R1 | AH124: R3
K125: 0 | W125: 27 | AH125: 3.3
AQ126: =INDEX(Parameters!$D$3:$D$18,Summary!$D16) -> AN0
AG131: R2 | AO131: 校正
C132: 被测电阻信号 | AG132: 18 | AP132: 0
E136: GND | AB136: GND
A138: 6
D139: 使用此通道
C140: 通道名称 | AG140: 电阻值输出单位
K142: 参考电源选择 | V142: =IF(Summary!$F17=2,"通道名称","电压") -> 电压 | AN142: =IF(Summary!$F17=2,"","mV") -> mV
AA143: (参考电源选择为VREF时此格无效)
AM146: MCU
U148: R4
U149: 120
K151: R5 | W151: R1 | AH151: R3
K152: 0 | W152: 27 | AH152: 3.3
AQ153: =INDEX(Parameters!$D$3:$D$18,Summary!$D17) -> AN0
AG158: R2 | AO158: 校正
C159: 被测电阻信号 | AG159: 18 | AP159: 0
E163: GND | AB163: GND
A165: 7
D166: 使用此通道
C167: 通道名称 | AG167: 电阻值输出单位
K169: 参考电源选择 | V169: =IF(Summary!$F18=2,"通道名称","电压") -> 电压 | AN169: =IF(Summary!$F18=2,"","mV") -> mV
AA170: (参考电源选择为VREF时此格无效)
AM173: MCU
U175: R4
U176: 120
K178: R5 | W178: R1 | AH178: R3
K179: 0 | W179: 27 | AH179: 3.3
AQ180: =INDEX(Parameters!$D$3:$D$18,Summary!$D18) -> AN0
AG185: R2 | AO185: 校正
C186: 被测电阻信号 | AG186: 18 | AP186: 0
E190: GND | AB190: GND
A192: 8
D193: 使用此通道
C194: 通道名称 | AG194: 电阻值输出单位
K196: 参考电源选择 | V196: =IF(Summary!$F19=2,"通道名称","电压") -> 电压 | AN196: =IF(Summary!$F19=2,"","mV") -> mV
AA197: (参考电源选择为VREF时此格无效)
AM200: MCU
U202: R4
U203: 120
K205: R5 | W205: R1 | AH205: R3
K206: 0 | W206: 27 | AH206: 3.3
AQ207: =INDEX(Parameters!$D$3:$D$18,Summary!$D19) -> AN0
AG212: R2 | AO212: 校正
C213: 被测电阻信号 | AG213: 18 | AP213: 0
E217: GND | AB217: GND
A219: 9
D220: 使用此通道
C221: 通道名称 | AG221: 电阻值输出单位
K223: 参考电源选择 | V223: =IF(Summary!$F20=2,"通道名称","电压") -> 电压 | AN223: =IF(Summary!$F20=2,"","mV") -> mV
AA224: (参考电源选择为VREF时此格无效)
AM227: MCU
U229: R4
U230: 120
K232: R5 | W232: R1 | AH232: R3
K233: 0 | W233: 27 | AH233: 3.3
AQ234: =INDEX(Parameters!$D$3:$D$18,Summary!$D20) -> AN0
AG239: R2 | AO239: 校正
C240: 被测电阻信号 | AG240: 18 | AP240: 0
E244: GND | AB244: GND
A246: 10
D247: 使用此通道
C248: 通道名称 | AG248: 电阻值输出单位
K250: 参考电源选择 | V250: =IF(Summary!$F21=2,"通道名称","电压") -> 电压 | AN250: =IF(Summary!$F21=2,"","mV") -> mV
AA251: (参考电源选择为VREF时此格无效)
AM254: MCU
U256: R4
U257: 120
K259: R5 | W259: R1 | AH259: R3
K260: 0 | W260: 27 | AH260: 3.3
AQ261: =INDEX(Parameters!$D$3:$D$18,Summary!$D21) -> AN0
AG266: R2 | AO266: 校正
C267: 被测电阻信号 | AG267: 18 | AP267: 0
E271: GND | AB271: GND

Sheet 普通高端电阻测量通道
A1: 普通高端电阻测量通道
A2: 所有通道全部配置完成后，转到封面页点击“生成配置文件”按钮
A3: 1
D4: 使用此通道
C5: 通道名称 | I5: ADC_CH_NTC_R | AG5: 电阻值输出单位
C7: 参考电源选择 | K7: =IF(Summary!$F22=2,"通道名称","电压") -> 电压 | O7: 5000 | AH7: =IF(Summary!$F22=2,"","mV") -> mV
T8: (参考电源选择为VREF时此格无效)
AM11: MCU
C14: 被测电阻信号
K16: R5 | W16: R1 | AH16: R3
K17: 0 | W17: 0 | AH17: 4.7
AQ18: =INDEX(Parameters!$D$3:$D$18,Summary!$D22) -> AN4
U23: R4 | AG23: R2 | AO23: 校正
U24: 10 | AG24: 10 | AP24: 0
P28: GND | AB28: GND
A30: 2
D31: 使用此通道
C32: 通道名称 | AG32: 电阻值输出单位
C34: 参考电源选择 | K34: =IF(Summary!$F23=2,"通道名称","电压") -> 电压 | AH34: =IF(Summary!$F23=2,"","mV") -> mV
T35: (参考电源选择为VREF时此格无效)
AM38: MCU
C41: 被测电阻信号
K43: R5 | W43: R1 | AH43: R3
K44: 0 | W44: 0 | AH44: 3.3
AQ45: =INDEX(Parameters!$D$3:$D$18,Summary!$D23) -> AN0
U50: R4 | AG50: R2 | AO50: 校正
U51: 10 | AG51: 10 | AP51: 0
P55: GND | AB55: GND
A57: 3
D58: 使用此通道
C59: 通道名称 | AG59: 电阻值输出单位
C61: 参考电源选择 | K61: =IF(Summary!$F24=2,"通道名称","电压") -> 电压 | AH61: =IF(Summary!$F24=2,"","mV") -> mV
T62: (参考电源选择为VREF时此格无效)
AM65: MCU
C68: 被测电阻信号
K70: R5 | W70: R1 | AH70: R3
K71: 0 | W71: 0 | AH71: 3.3
AQ72: =INDEX(Parameters!$D$3:$D$18,Summary!$D24) -> AN0
U77: R4 | AG77: R2 | AO77: 校正
U78: 10 | AG78: 10 | AP78: 0
P82: GND | AB82: GND
A84: 4
D85: 使用此通道
C86: 通道名称 | AG86: 电阻值输出单位
C88: 参考电源选择 | K88: =IF(Summary!$F25=2,"通道名称","电压") -> 电压 | AH88: =IF(Summary!$F25=2,"","mV") -> mV
T89: (参考电源选择为VREF时此格无效)
AM92: MCU
C95: 被测电阻信号
K97: R5 | W97: R1 | AH97: R3
K98: 0 | W98: 0 | AH98: 3.3
AQ99: =INDEX(Parameters!$D$3:$D$18,Summary!$D25) -> AN0
U104: R4 | AG104: R2 | AO104: 校正
U105: 10 | AG105: 10 | AP105: 0
P109: GND | AB109: GND
A111: 5
D112: 使用此通道
C113: 通道名称 | AG113: 电阻值输出单位
C115: 参考电源选择 | K115: =IF(Summary!$F26=2,"通道名称","电压") -> 电压 | AH115: =IF(Summary!$F26=2,"","mV") -> mV
T116: (参考电源选择为VREF时此格无效)
AM119: MCU
C122: 被测电阻信号
K124: R5 | W124: R1 | AH124: R3
K125: 0 | W125: 0 | AH125: 3.3
AQ126: =INDEX(Parameters!$D$3:$D$18,Summary!$D26) -> AN0
U131: R4 | AG131: R2 | AO131: 校正
U132: 10 | AG132: 10 | AP132: 0
P136: GND | AB136: GND
A138: 6
D139: 使用此通道
C140: 通道名称 | AG140: 电阻值输出单位
C142: 参考电源选择 | K142: =IF(Summary!$F27=2,"通道名称","电压") -> 电压 | AH142: =IF(Summary!$F27=2,"","mV") -> mV
T143: (参考电源选择为VREF时此格无效)
AM146: MCU
C149: 被测电阻信号
K151: R5 | W151: R1 | AH151: R3
K152: 0 | W152: 0 | AH152: 3.3
AQ153: =INDEX(Parameters!$D$3:$D$18,Summary!$D27) -> AN0
U158: R4 | AG158: R2 | AO158: 校正
U159: 10 | AG159: 10 | AP159: 0
P163: GND | AB163: GND
A165: 7
D166: 使用此通道
C167: 通道名称 | AG167: 电阻值输出单位
C169: 参考电源选择 | K169: =IF(Summary!$F28=2,"通道名称","电压") -> 电压 | AH169: =IF(Summary!$F28=2,"","mV") -> mV
T170: (参考电源选择为VREF时此格无效)
AM173: MCU
C176: 被测电阻信号
K178: R5 | W178: R1 | AH178: R3
K179: 0 | W179: 0 | AH179: 3.3
AQ180: =INDEX(Parameters!$D$3:$D$18,Summary!$D28) -> AN0
U185: R4 | AG185: R2 | AO185: 校正
U186: 10 | AG186: 10 | AP186: 0
P190: GND | AB190: GND
A192: 8
D193: 使用此通道
C194: 通道名称 | AG194: 电阻值输出单位
C196: 参考电源选择 | K196: =IF(Summary!$F29=2,"通道名称","电压") -> 电压 | AH196: =IF(Summary!$F29=2,"","mV") -> mV
T197: (参考电源选择为VREF时此格无效)
AM200: MCU
C203: 被测电阻信号
K205: R5 | W205: R1 | AH205: R3
K206: 0 | W206: 0 | AH206: 3.3
AQ207: =INDEX(Parameters!$D$3:$D$18,Summary!$D29) -> AN0
U212: R4 | AG212: R2 | AO212: 校正
U213: 10 | AG213: 10 | AP213: 0
P217: GND | AB217: GND
A219: 9
D220: 使用此通道
C221: 通道名称 | AG221: 电阻值输出单位
C223: 参考电源选择 | K223: =IF(Summary!$F30=2,"通道名称","电压") -> 电压 | AH223: =IF(Summary!$F30=2,"","mV") -> mV
T224: (参考电源选择为VREF时此格无效)
AM227: MCU
C230: 被测电阻信号
K232: R5 | W232: R1 | AH232: R3
K233: 0 | W233: 0 | AH233: 3.3
AQ234: =INDEX(Parameters!$D$3:$D$18,Summary!$D30) -> AN0
U239: R4 | AG239: R2 | AO239: 校正
U240: 10 | AG240: 10 | AP240: 0
P244: GND | AB244: GND
A246: 10
D247: 使用此通道
C248: 通道名称 | AG248: 电阻值输出单位
C250: 参考电源选择 | K250: =IF(Summary!$F31=2,"通道名称","电压") -> 电压 | AH250: =IF(Summary!$F31=2,"","mV") -> mV
T251: (参考电源选择为VREF时此格无效)
AM254: MCU
C257: 被测电阻信号
K259: R5 | W259: R1 | AH259: R3
K260: 0 | W260: 0 | AH260: 3.3
AQ261: =INDEX(Parameters!$D$3:$D$18,Summary!$D31) -> AN0
U266: R4 | AG266: R2 | AO266: 校正
U267: 10 | AG267: 10 | AP267: 0
P271: GND | AB271: GND

Sheet 恒流低端电阻测量通道
A1: 恒流低端电阻测量通道
A2: 所有通道全部配置完成后，转到封面页点击“生成配置文件”按钮
A3: 1
D4: 使用此通道
C5: 通道名称 | I5: ADC_CH_BRIGHTNESS_R | AG5: 电阻值输出单位
P7: VS
AM11: MCU
U13: 电流
U14: 0.072 | X14: mA
K16: R5 | W16: R1 | AH16: R3
K17: 0 | W17: 0 | AH17: 3.3
AQ18: =INDEX(Parameters!$D$3:$D$18,Summary!$D32) -> AN10
AG23: R2 | AO23: 校正
C24: 被测电阻信号 | AG24: 10 | AP24: 0
E28: GND | AB28: GND
A30: 2
D31: 使用此通道
C32: 通道名称 | AG32: 电阻值输出单位
P34: VS
AM38: MCU
U40: 电流
U41: 0.1 | X41: mA
K43: R5 | W43: R1 | AH43: R3
K44: 0 | W44: 0 | AH44: 3.3
AQ45: =INDEX(Parameters!$D$3:$D$18,Summary!$D33) -> AN0
AG50: R2 | AO50: 校正
C51: 被测电阻信号 | AG51: 10 | AP51: 0
E55: GND | AB55: GND
A57: 3
D58: 使用此通道
C59: 通道名称 | AG59: 电阻值输出单位
P61: VS
AM65: MCU
U67: 电流
U68: 0.1 | X68: mA
K70: R5 | W70: R1 | AH70: R3
K71: 0 | W71: 0 | AH71: 3.3
AQ72: =INDEX(Parameters!$D$3:$D$18,Summary!$D34) -> AN0
AG77: R2 | AO77: 校正
C78: 被测电阻信号 | AG78: 10 | AP78: 0
E82: GND | AB82: GND
A84: 4
D85: 使用此通道
C86: 通道名称 | AG86: 电阻值输出单位
P88: VS
AM92: MCU
U94: 电流
U95: 0.1 | X95: mA
K97: R5 | W97: R1 | AH97: R3
K98: 0 | W98: 0 | AH98: 3.3
AQ99: =INDEX(Parameters!$D$3:$D$18,Summary!$D35) -> AN0
AG104: R2 | AO104: 校正
C105: 被测电阻信号 | AG105: 10 | AP105: 0
E109: GND | AB109: GND
A111: 5
D112: 使用此通道
C113: 通道名称 | AG113: 电阻值输出单位
P115: VS
AM119: MCU
U121: 电流
U122: 0.1 | X122: mA
K124: R5 | W124: R1 | AH124: R3
K125: 0 | W125: 0 | AH125: 3.3
AQ126: =INDEX(Parameters!$D$3:$D$18,Summary!$D36) -> AN0
AG131: R2 | AO131: 校正
C132: 被测电阻信号 | AG132: 10 | AP132: 0
E136: GND | AB136: GND
A138: 6
D139: 使用此通道
C140: 通道名称 | AG140: 电阻值输出单位
P142: VS
AM146: MCU
U148: 电流
U149: 0.1 | X149: mA
K151: R5 | W151: R1 | AH151: R3
K152: 0 | W152: 0 | AH152: 3.3
AQ153: =INDEX(Parameters!$D$3:$D$18,Summary!$D37) -> AN0
AG158: R2 | AO158: 校正
C159: 被测电阻信号 | AG159: 10 | AP159: 0
E163: GND | AB163: GND
A165: 7
D166: 使用此通道
C167: 通道名称 | AG167: 电阻值输出单位
P169: VS
AM173: MCU
U175: 电流
U176: 0.1 | X176: mA
K178: R5 | W178: R1 | AH178: R3
K179: 0 | W179: 0 | AH179: 3.3
AQ180: =INDEX(Parameters!$D$3:$D$18,Summary!$D38) -> AN0
AG185: R2 | AO185: 校正
C186: 被测电阻信号 | AG186: 10 | AP186: 0
E190: GND | AB190: GND
A192: 8
D193: 使用此通道
C194: 通道名称 | AG194: 电阻值输出单位
P196: VS
AM200: MCU
U202: 电流
U203: 0.1 | X203: mA
K205: R5 | W205: R1 | AH205: R3
K206: 0 | W206: 0 | AH206: 3.3
AQ207: =INDEX(Parameters!$D$3:$D$18,Summary!$D39) -> AN0
AG212: R2 | AO212: 校正
C213: 被测电阻信号 | AG213: 10 | AP213: 0
E217: GND | AB217: GND
A219: 9
D220: 使用此通道
C221: 通道名称 | AG221: 电阻值输出单位
P223: VS
AM227: MCU
U229: 电流
U230: 0.1 | X230: mA
K232: R5 | W232: R1 | AH232: R3
K233: 0 | W233: 0 | AH233: 3.3
AQ234: =INDEX(Parameters!$D$3:$D$18,Summary!$D40) -> AN0
AG239: R2 | AO239: 校正
C240: 被测电阻信号 | AG240: 10 | AP240: 0
E244: GND | AB244: GND
A246: 10
D247: 使用此通道
C248: 通道名称 | AG248: 电阻值输出单位
P250: VS
AM254: MCU
U256: 电流
U257: 0.1 | X257: mA
K259: R5 | W259: R1 | AH259: R3
K260: 0 | W260: 0 | AH260: 3.3
AQ261: =INDEX(Parameters!$D$3:$D$18,Summary!$D41) -> AN0
AG266: R2 | AO266: 校正
C267: 被测电阻信号 | AG267: 10 | AP267: 0
E271: GND | AB271: GND

Sheet Parameters
A1: Unit | B1: Power Source | C1: Pin Configuration | F1: Calibration | G1: Res Output
C2: Pin | D2: Analog Ch. Name | E2: Analog Ch. Number
A3: Ω | B3: VREF | C3: Pin56 | D3: AN0 | E3: 0 | F3: + | G3: 0.1Ω
A4: kΩ | B4: 电压通道 | C4: Pin55 | D4: AN1 | E4: 1 | F4: - | G4: 1Ω
B5: 固定电压 | C5: Pin54 | D5: AN2 | E5: 2 | G5: 10Ω
C6: Pin53 | D6: AN3 | E6: 3 | G6: 100Ω
C7: Pin52 | D7: AN4 | E7: 4
C8: Pin51 | D8: AN5 | E8: 5
C9: Pin50 | D9: AN6 | E9: 6
C10: Pin49 | D10: AN7 | E10: 7
C11: Pin45 | D11: AN8 | E11: 8
C12: Pin46 | D12: AN9 | E12: 9
C13: Pin59 | D13: AN10 | E13: 10
C14: Pin60 | D14: AN11 | E14: 11
C15: Pin48 | D15: AN12 | E15: 12
C16: Pin58 | D16: AN13 | E16: 13
C17: Pin01 | D17: AN14 | E17: 14
C18: Pin47 | D18: AN15 | E18: 15

Sheet Summary
A1: Channel | B1: Enable | C1: Channel Name | D1: Pin Index | E1: AN | F1: Reference Type | G1: Reference | H1: Output Unit | I1: R1 Unit Index | J1: R1 | K1: R2 Available | L1: R2 Unit Index | M1: R2 | N1: R4 Unit Index | O1: R4 | P1: R5 Unit Index | Q1: R5 | R1: Cal. Enable | S1: Cal. Select | T1: Cal. Mode | U1: Cal. Data
A2: V1_1 | B2: TRUE | C2: =IF(LEN(电压测量通道!$G$5)>0,UPPER(电压测量通道!$G$5),"") -> ADC_CH_KL30_VOLTAGE | D2: 3 | E2: =INDEX(Parameters!$E$3:$E$18,$D2) -> 2 | F2: 0 | G2: - | H2: 1 | I2: 2 | J2: =INT(电压测量通道!$M$14*IF($I2=2,10000,10)) -> 3300000 | K2: TRUE | L2: 2 | M2: =INT(电压测量通道!$M$24*IF($L2=2,10000,10)) -> 1000000 | N2: - | O2: - | P2: - | Q2: - | R2: FALSE | S2: 1 | T2: =IF($R2=TRUE,$S2,0) -> 0 | U2: =INT(电压测量通道!$V$24) -> 0
A3: V1_2 | B3: FALSE | C3: =IF(LEN(电压测量通道!$G$32)>0,UPPER(电压测量通道!$G$32),"") -> ADC_CH_AIR_BAG_LED | D3: 1 | E3: =INDEX(Parameters!$E$3:$E$18,$D3) -> 0 | F3: 0 | G3: - | H3: 1 | I3: 1 | J3: =INT(电压测量通道!$M$41*IF($I3=2,10000,10)) -> 0 | K3: FALSE | L3: 2 | M3: =INT(电压测量通道!$M$51*IF($L3=2,10000,10)) -> 100000 | N3: - | O3: - | P3: - | Q3: - | R3: FALSE | S3: 1 | T3: =IF($R3=TRUE,$S3,0) -> 0 | U3: =INT(电压测量通道!$V$51) -> 0
A4: V1_3 | B4: TRUE | C4: =IF(LEN(电压测量通道!$G$59)>0,UPPER(电压测量通道!$G$59),"") -> ADC_CH_KL15_VOLTAGE | D4: 4 | E4: =INDEX(Parameters!$E$3:$E$18,$D4) -> 3 | F4: 0 | G4: - | H4: 1 | I4: 2 | J4: =INT(电压测量通道!$M$68*IF($I4=2,10000,10)) -> 3300000 | K4: TRUE | L4: 2 | M4: =INT(电压测量通道!$M$78*IF($L4=2,10000,10)) -> 1000000 | N4: - | O4: - | P4: - | Q4: - | R4: FALSE | S4: 1 | T4: 0 | U4: =INT(电压测量通道!$V$78) -> 0
A5: V1_4 | B5: TRUE | C5: =IF(LEN(电压测量通道!$G$86)>0,UPPER(电压测量通道!$G$86),"") -> ADC_CH_FUEL_VREF | D5: 8 | E5: =INDEX(Parameters!$E$3:$E$18,$D5) -> 7 | F5: 0 | G5: - | H5: 1 | I5: 2 | J5: =INT(电压测量通道!$M$95*IF($I5=2,10000,10)) -> 0 | K5: FALSE | L5: 2 | M5: =INT(电压测量通道!$M$105*IF($L5=2,10000,10)) -> 0 | N5: - | O5: - | P5: - | Q5: - | R5: FALSE | S5: 1 | T5: 0 | U5: =INT(电压测量通道!$V$105) -> 0
A6: V1_5 | B6: FALSE | C6: =IF(LEN(电压测量通道!$G$113)>0,UPPER(电压测量通道!$G$113),"") -> ADC_CH_FUEL1 | D6: 6 | E6: =INDEX(Parameters!$E$3:$E$18,$D6) -> 5 | F6: 0 | G6: - | H6: 1 | I6: 2 | J6: =INT(电压测量通道!$M$122*IF($I6=2,10000,10)) -> 270000 | K6: TRUE | L6: 2 | M6: =INT(电压测量通道!$M$132*IF($L6=2,10000,10)) -> 180000 | N6: - | O6: - | P6: - | Q6: - | R6: FALSE | S6: 1 | T6: 0 | U6: =INT(电压测量通道!$V$132) -> 0
A7: V1_6 | B7: FALSE | C7: =IF(LEN(电压测量通道!$G$140)>0,UPPER(电压测量通道!$G$140),"") -> ADC_CH_GEAR | D7: 7 | E7: =INDEX(Parameters!$E$3:$E$18,$D7) -> 6 | F7: 0 | G7: - | H7: 1 | I7: 1 | J7: =INT(电压测量通道!$M$149*IF($I7=2,10000,10)) -> 0 | K7: FALSE | L7: 2 | M7: =INT(电压测量通道!$M$159*IF($L7=2,10000,10)) -> 3000000 | N7: - | O7: - | P7: - | Q7: - | R7: FALSE | S7: 1 | T7: 0 | U7: =INT(电压测量通道!$V$159) -> 0
A8: V1_7 | B8: FALSE | C8: =IF(LEN(电压测量通道!$G$167)>0,UPPER(电压测量通道!$G$167),"") -> ADCH_TEST | D8: 8 | E8: =INDEX(Parameters!$E$3:$E$18,$D8) -> 7 | F8: 0 | G8: - | H8: 1 | I8: 2 | J8: =INT(电压测量通道!$M$176*IF($I8=2,10000,10)) -> 270000 | K8: TRUE | L8: 2 | M8: =INT(电压测量通道!$M$186*IF($L8=2,10000,10)) -> 180000 | N8: - | O8: - | P8: - | Q8: - | R8: FALSE | S8: 1 | T8: 0 | U8: =INT(电压测量通道!$V$186) -> 0
A9: V1_8 | B9: FALSE | C9: =IF(LEN(电压测量通道!$G$194)>0,UPPER(电压测量通道!$G$194),"") ->  | D9: 1 | E9: =INDEX(Parameters!$E$3:$E$18,$D9) -> 0 | F9: 0 | G9: - | H9: 1 | I9: 2 | J9: =INT(电压测量通道!$M$203*IF($I9=2,10000,10)) -> 330000 | K9: TRUE | L9: 2 | M9: =INT(电压测量通道!$M$213*IF($L9=2,10000,10)) -> 100000 | N9: - | O9: - | P9: - | Q9: - | R9: FALSE | S9: 1 | T9: 0 | U9: =INT(电压测量通道!$V$213) -> 0
A10: V1_9 | B10: FALSE | C10: =IF(LEN(电压测量通道!$G$221)>0,UPPER(电压测量通道!$G$221),"") ->  | D10: 1 | E10: =INDEX(Parameters!$E$3:$E$18,$D10) -> 0 | F10: 0 | G10: - | H10: 1 | I10: 2 | J10: =INT(电压测量通道!$M$230*IF($I10=2,10000,10)) -> 330000 | K10: TRUE | L10: 2 | M10: =INT(电压测量通道!$M$240*IF($L10=2,10000,10)) -> 100000 | N10: - | O10: - | P10: - | Q10: - | R10: FALSE | S10: 1 | T10: 0 | U10: =INT(电压测量通道!$V$240) -> 0
A11: V1_10 | B11: FALSE | C11: =IF(LEN(电压测量通道!$G$248)>0,UPPER(电压测量通道!$G$248),"") ->  | D11: 1 | E11: =INDEX(Parameters!$E$3:$E$18,$D11) -> 0 | F11: 0 | G11: - | H11: 1 | I11: 2 | J11: =INT(电压测量通道!$M$257*IF($I11=2,10000,10)) -> 330000 | K11: TRUE | L11: 2 | M11: =INT(电压测量通道!$M$267*IF($L11=2,10000,10)) -> 100000 | N11: - | O11: - | P11: - | Q11: - | R11: FALSE | S11: 1 | T11: 0 | U11: =INT(电压测量通道!$V$267) -> 0
A12: R1_1 | B12: TRUE | C12: =IF(LEN(普通低端电阻测量通道!$I$5)>0,UPPER(普通低端电阻测量通道!$I$5),"") -> ADC_CH_FUEL1 | D12: 6 | E12: =INDEX(Parameters!$E$3:$E$18,$D12) -> 5 | F12: 2 | G12: =IF(LEN(普通低端电阻测量通道!$Z$7)>0,UPPER(普通低端电阻测量通道!$Z$7),"") -> ADC_CH_FUEL_VREF | H12: 1 | I12: 2 | J12: =INT(普通低端电阻测量通道!$W$17*IF($I12=2,10000,10)) -> 0 | K12: FALSE | L12: 2 | M12: =INT(普通低端电阻测量通道!$AG$24*IF($L12=2,10000,10)) -> 0 | N12: 1 | O12: =INT(普通低端电阻测量通道!$U$14*IF($N12=2,10000,10)) -> 500 | P12: 1 | Q12: =INT(普通低端电阻测量通道!$K$17*IF($P12=2,10000,10)) -> 300 | R12: FALSE | S12: 2 | T12: 0 | U12: =INT(普通低端电阻测量通道!$AP$24) -> 0
A13: R1_2 | B13: TRUE | C13: =IF(LEN(普通低端电阻测量通道!$I$32)>0,UPPER(普通低端电阻测量通道!$I$32),"") -> ADC_CH_COOLANT_TEMP1_R | D13: 7 | E13: =INDEX(Parameters!$E$3:$E$18,$D13) -> 6 | F13: 2 | G13: =IF(LEN(普通低端电阻测量通道!$Z$34)>0,UPPER(普通低端电阻测量通道!$Z$34),"") -> ADC_CH_FUEL_VREF | H13: 1 | I13: 2 | J13: =INT(普通低端电阻测量通道!$W$44*IF($I13=2,10000,10)) -> 0 | K13: FALSE | L13: 2 | M13: =INT(普通低端电阻测量通道!$AG$51*IF($L13=2,10000,10)) -> 0 | N13: 1 | O13: =INT(普通低端电阻测量通道!$U$41*IF($N13=2,10000,10)) -> 500 | P13: 1 | Q13: =INT(普通低端电阻测量通道!$K$44*IF($P13=2,10000,10)) -> 0 | R13: FALSE | S13: 1 | T13: 0 | U13: =INT(普通低端电阻测量通道!$AP$51) -> 0
A14: R1_3 | B14: FALSE | C14: =IF(LEN(普通低端电阻测量通道!$I$59)>0,UPPER(普通低端电阻测量通道!$I$59),"") -> ADC_CH_COOLANT_TEMP2_R | D14: 7 | E14: =INDEX(Parameters!$E$3:$E$18,$D14) -> 6 | F14: 3 | G14: =IF(LEN(普通低端电阻测量通道!$Z$61)>0,UPPER(普通低端电阻测量通道!$Z$61),"") -> 5000 | H14: 2 | I14: 2 | J14: =INT(普通低端电阻测量通道!$W$71*IF($I14=2,10000,10)) -> 0 | K14: FALSE | L14: 2 | M14: =INT(普通低端电阻测量通道!$AG$78*IF($L14=2,10000,10)) -> 0 | N14: 2 | O14: =INT(普通低端电阻测量通道!$U$68*IF($N14=2,10000,10)) -> 200000 | P14: 1 | Q14: =INT(普通低端电阻测量通道!$K$71*IF($P14=2,10000,10)) -> 0 | R14: FALSE | S14: 2 | T14: 0 | U14: =INT(普通低端电阻测量通道!$AP$78) -> 0
A15: R1_4 | B15: FALSE | C15: =IF(LEN(普通低端电阻测量通道!$I$86)>0,UPPER(普通低端电阻测量通道!$I$86),"") -> ADC_CH_FUEL2_R | D15: 16 | E15: =INDEX(Parameters!$E$3:$E$18,$D15) -> 15 | F15: 2 | G15: =IF(LEN(普通低端电阻测量通道!$Z$88)>0,UPPER(普通低端电阻测量通道!$Z$88),"") -> ADC_CH_FUEL2_REF_V | H15: 1 | I15: 2 | J15: =INT(普通低端电阻测量通道!$W$98*IF($I15=2,10000,10)) -> 270000 | K15: TRUE | L15: 2 | M15: =INT(普通低端电阻测量通道!$AG$105*IF($L15=2,10000,10)) -> 180000 | N15: 1 | O15: =INT(普通低端电阻测量通道!$U$95*IF($N15=2,10000,10)) -> 1200 | P15: 1 | Q15: =INT(普通低端电阻测量通道!$K$98*IF($P15=2,10000,10)) -> 0 | R15: FALSE | S15: 1 | T15: 0 | U15: =INT(普通低端电阻测量通道!$AP$105) -> 0
A16: R1_5 | B16: FALSE | C16: =IF(LEN(普通低端电阻测量通道!$I$113)>0,UPPER(普通低端电阻测量通道!$I$113),"") ->  | D16: 1 | E16: =INDEX(Parameters!$E$3:$E$18,$D16) -> 0 | F16: 1 | G16: =IF(LEN(普通低端电阻测量通道!$Z$115)>0,UPPER(普通低端电阻测量通道!$Z$115),"") ->  | H16: 1 | I16: 2 | J16: =INT(普通低端电阻测量通道!$W$125*IF($I16=2,10000,10)) -> 270000 | K16: TRUE | L16: 2 | M16: =INT(普通低端电阻测量通道!$AG$132*IF($L16=2,10000,10)) -> 180000 | N16: 1 | O16: =INT(普通低端电阻测量通道!$U$122*IF($N16=2,10000,10)) -> 1200 | P16: 1 | Q16: =INT(普通低端电阻测量通道!$K$125*IF($P16=2,10000,10)) -> 0 | R16: FALSE | S16: 1 | T16: 0 | U16: =INT(普通低端电阻测量通道!$AP$132) -> 0
A17: R1_6 | B17: FALSE | C17: =IF(LEN(普通低端电阻测量通道!$I$140)>0,UPPER(普通低端电阻测量通道!$I$140),"") ->  | D17: 1 | E17: =INDEX(Parameters!$E$3:$E$18,$D17) -> 0 | F17: 1 | G17: =IF(LEN(普通低端电阻测量通道!$Z$142)>0,UPPER(普通低端电阻测量通道!$Z$142),"") ->  | H17: 1 | I17: 2 | J17: =INT(普通低端电阻测量通道!$W$152*IF($I17=2,10000,10)) -> 270000 | K17: TRUE | L17: 2 | M17: =INT(普通低端电阻测量通道!$AG$159*IF($L17=2,10000,10)) -> 180000 | N17: 1 | O17: =INT(普通低端电阻测量通道!$U$149*IF($N17=2,10000,10)) -> 1200 | P17: 1 | Q17: =INT(普通低端电阻测量通道!$K$152*IF($P17=2,10000,10)) -> 0 | R17: FALSE | S17: 1 | T17: 0 | U17: =INT(普通低端电阻测量通道!$AP$159) -> 0
A18: R1_7 | B18: FALSE | C18: =IF(LEN(普通低端电阻测量通道!$I$167)>0,UPPER(普通低端电阻测量通道!$I$167),"") ->  | D18: 1 | E18: =INDEX(Parameters!$E$3:$E$18,$D18) -> 0 | F18: 1 | G18: =IF(LEN(普通低端电阻测量通道!$Z$169)>0,UPPER(普通低端电阻测量通道!$Z$169),"") ->  | H18: 1 | I18: 2 | J18: =INT(普通低端电阻测量通道!$W$179*IF($I18=2,10000,10)) -> 270000 | K18: TRUE | L18: 2 | M18: =INT(普通低端电阻测量通道!$AG$186*IF($L18=2,10000,10)) -> 180000 | N18: 1 | O18: =INT(普通低端电阻测量通道!$U$176*IF($N18=2,10000,10)) -> 1200 | P18: 1 | Q18: =INT(普通低端电阻测量通道!$K$179*IF($P18=2,10000,10)) -> 0 | R18: FALSE | S18: 1 | T18: 0 | U18: =INT(普通低端电阻测量通道!$AP$186) -> 0
A19: R1_8 | B19: FALSE | C19: =IF(LEN(普通低端电阻测量通道!$I$194)>0,UPPER(普通低端电阻测量通道!$I$194),"") ->  | D19: 1 | E19: =INDEX(Parameters!$E$3:$E$18,$D19) -> 0 | F19: 1 | G19: =IF(LEN(普通低端电阻测量通道!$Z$196)>0,UPPER(普通低端电阻测量通道!$Z$196),"") ->  | H19: 1 | I19: 2 | J19: =INT(普通低端电阻测量通道!$W$206*IF($I19=2,10000,10)) -> 270000 | K19: TRUE | L19: 2 | M19: =INT(普通低端电阻测量通道!$AG$213*IF($L19=2,10000,10)) -> 180000 | N19: 1 | O19: =INT(普通低端电阻测量通道!$U$203*IF($N19=2,10000,10)) -> 1200 | P19: 1 | Q19: =INT(普通低端电阻测量通道!$K$206*IF($P19=2,10000,10)) -> 0 | R19: FALSE | S19: 1 | T19: 0 | U19: =INT(普通低端电阻测量通道!$AP$213) -> 0
A20: R1_9 | B20: FALSE | C20: =IF(LEN(普通低端电阻测量通道!$I$221)>0,UPPER(普通低端电阻测量通道!$I$221),"") ->  | D20: 1 | E20: =INDEX(Parameters!$E$3:$E$18,$D20) -> 0 | F20: 1 | G20: =IF(LEN(普通低端电阻测量通道!$Z$223)>0,UPPER(普通低端电阻测量通道!$Z$223),"") ->  | H20: 1 | I20: 2 | J20: =INT(普通低端电阻测量通道!$W$233*IF($I20=2,10000,10)) -> 270000 | K20: TRUE | L20: 2 | M20: =INT(普通低端电阻测量通道!$AG$240*IF($L20=2,10000,10)) -> 180000 | N20: 1 | O20: =INT(普通低端电阻测量通道!$U$230*IF($N20=2,10000,10)) -> 1200 | P20: 1 | Q20: =INT(普通低端电阻测量通道!$K$233*IF($P20=2,10000,10)) -> 0 | R20: FALSE | S20: 1 | T20: 0 | U20: =INT(普通低端电阻测量通道!$AP$240) -> 0
A21: R1_10 | B21: FALSE | C21: =IF(LEN(普通低端电阻测量通道!$I$248)>0,UPPER(普通低端电阻测量通道!$I$248),"") ->  | D21: 1 | E21: =INDEX(Parameters!$E$3:$E$18,$D21) -> 0 | F21: 1 | G21: =IF(LEN(普通低端电阻测量通道!$Z$250)>0,UPPER(普通低端电阻测量通道!$Z$250),"") ->  | H21: 1 | I21: 2 | J21: =INT(普通低端电阻测量通道!$W$260*IF($I21=2,10000,10)) -> 270000 | K21: TRUE | L21: 2 | M21: =INT(普通低端电阻测量通道!$AG$267*IF($L21=2,10000,10)) -> 180000 | N21: 1 | O21: =INT(普通低端电阻测量通道!$U$257*IF($N21=2,10000,10)) -> 1200 | P21: 1 | Q21: =INT(普通低端电阻测量通道!$K$260*IF($P21=2,10000,10)) -> 0 | R21: FALSE | S21: 1 | T21: 0 | U21: =INT(普通低端电阻测量通道!$AP$267) -> 0
A22: R2_1 | B22: FALSE | C22: =IF(LEN(普通高端电阻测量通道!$I$5)>0,UPPER(普通高端电阻测量通道!$I$5),"") -> ADC_CH_NTC_R | D22: 5 | E22: =INDEX(Parameters!$E$3:$E$18,$D22) -> 4 | F22: 3 | G22: =IF(LEN(普通高端电阻测量通道!$O$7)>0,UPPER(普通高端电阻测量通道!$O$7),"") -> 5000 | H22: 2 | I22: 1 | J22: =INT(普通高端电阻测量通道!$W$17*IF($I22=2,10000,10)) -> 0 | K22: FALSE | L22: 2 | M22: =INT(普通高端电阻测量通道!$AG$24*IF($L22=2,10000,10)) -> 100000 | N22: 2 | O22: =INT(普通高端电阻测量通道!$U$24*IF($N22=2,10000,10)) -> 100000 | P22: 1 | Q22: =INT(普通高端电阻测量通道!$K$17*IF($P22=2,10000,10)) -> 0 | R22: FALSE | S22: 1 | T22: 0 | U22: =INT(普通高端电阻测量通道!$AP$24) -> 0
A23: R2_2 | B23: FALSE | C23: =IF(LEN(普通高端电阻测量通道!$I$32)>0,UPPER(普通高端电阻测量通道!$I$32),"") ->  | D23: 1 | E23: =INDEX(Parameters!$E$3:$E$18,$D23) -> 0 | F23: 1 | G23: =IF(LEN(普通高端电阻测量通道!$O$34)>0,UPPER(普通高端电阻测量通道!$O$34),"") ->  | H23: 4 | I23: 1 | J23: =INT(普通高端电阻测量通道!$W$44*IF($I23=2,10000,10)) -> 0 | K23: FALSE | L23: 2 | M23: =INT(普通高端电阻测量通道!$AG$51*IF($L23=2,10000,10)) -> 100000 | N23: 2 | O23: =INT(普通高端电阻测量通道!$U$51*IF($N23=2,10000,10)) -> 100000 | P23: 1 | Q23: =INT(普通高端电阻测量通道!$K$44*IF($P23=2,10000,10)) -> 0 | R23: FALSE | S23: 1 | T23: =IF($R23=TRUE,$S23,0) -> 0 | U23: =INT(普通高端电阻测量通道!$AP$51) -> 0
A24: R2_3 | B24: FALSE | C24: =IF(LEN(普通高端电阻测量通道!$I$59)>0,UPPER(普通高端电阻测量通道!$I$59),"") ->  | D24: 1 | E24: =INDEX(Parameters!$E$3:$E$18,$D24) -> 0 | F24: 1 | G24: =IF(LEN(普通高端电阻测量通道!$O$61)>0,UPPER(普通高端电阻测量通道!$O$61),"") ->  | H24: 4 | I24: 1 | J24: =INT(普通高端电阻测量通道!$W$71*IF($I24=2,10000,10)) -> 0 | K24: FALSE | L24: 2 | M24: =INT(普通高端电阻测量通道!$AG$78*IF($L24=2,10000,10)) -> 100000 | N24: 2 | O24: =INT(普通高端电阻测量通道!$U$78*IF($N24=2,10000,10)) -> 100000 | P24: 1 | Q24: =INT(普通高端电阻测量通道!$K$71*IF($P24=2,10000,10)) -> 0 | R24: FALSE | S24: 1 | T24: 0 | U24: =INT(普通高端电阻测量通道!$AP$78) -> 0
A25: R2_4 | B25: FALSE | C25: =IF(LEN(普通高端电阻测量通道!$I$86)>0,UPPER(普通高端电阻测量通道!$I$86),"") ->  | D25: 1 | E25: =INDEX(Parameters!$E$3:$E$18,$D25) -> 0 | F25: 1 | G25: =IF(LEN(普通高端电阻测量通道!$O$88)>0,UPPER(普通高端电阻测量通道!$O$88),"") ->  | H25: 4 | I25: 1 | J25: =INT(普通高端电阻测量通道!$W$98*IF($I25=2,10000,10)) -> 0 | K25: FALSE | L25: 2 | M25: =INT(普通高端电阻测量通道!$AG$105*IF($L25=2,10000,10)) -> 100000 | N25: 2 | O25: =INT(普通高端电阻测量通道!$U$105*IF($N25=2,10000,10)) -> 100000 | P25: 1 | Q25: =INT(普通高端电阻测量通道!$K$98*IF($P25=2,10000,10)) -> 0 | R25: FALSE | S25: 1 | T25: 0 | U25: =INT(普通高端电阻测量通道!$AP$105) -> 0
A26: R2_5 | B26: FALSE | C26: =IF(LEN(普通高端电阻测量通道!$I$113)>0,UPPER(普通高端电阻测量通道!$I$113),"") ->  | D26: 1 | E26: =INDEX(Parameters!$E$3:$E$18,$D26) -> 0 | F26: 1 | G26: =IF(LEN(普通高端电阻测量通道!$O$115)>0,UPPER(普通高端电阻测量通道!$O$115),"") ->  | H26: 4 | I26: 1 | J26: =INT(普通高端电阻测量通道!$W$125*IF($I26=2,10000,10)) -> 0 | K26: FALSE | L26: 2 | M26: =INT(普通高端电阻测量通道!$AG$132*IF($L26=2,10000,10)) -> 100000 | N26: 2 | O26: =INT(普通高端电阻测量通道!$U$132*IF($N26=2,10000,10)) -> 100000 | P26: 1 | Q26: =INT(普通高端电阻测量通道!$K$125*IF($P26=2,10000,10)) -> 0 | R26: FALSE | S26: 1 | T26: 0 | U26: =INT(普通高端电阻测量通道!$AP$132) -> 0
A27: R2_6 | B27: FALSE | C27: =IF(LEN(普通高端电阻测量通道!$I$140)>0,UPPER(普通高端电阻测量通道!$I$140),"") ->  | D27: 1 | E27: =INDEX(Parameters!$E$3:$E$18,$D27) -> 0 | F27: 1 | G27: =IF(LEN(普通高端电阻测量通道!$O$142)>0,UPPER(普通高端电阻测量通道!$O$142),"") ->  | H27: 4 | I27: 1 | J27: =INT(普通高端电阻测量通道!$W$152*IF($I27=2,10000,10)) -> 0 | K27: FALSE | L27: 2 | M27: =INT(普通高端电阻测量通道!$AG$159*IF($L27=2,10000,10)) -> 100000 | N27: 2 | O27: =INT(普通高端电阻测量通道!$U$159*IF($N27=2,10000,10)) -> 100000 | P27: 1 | Q27: =INT(普通高端电阻测量通道!$K$152*IF($P27=2,10000,10)) -> 0 | R27: FALSE | S27: 1 | T27: 0 | U27: =INT(普通高端电阻测量通道!$AP$159) -> 0
A28: R2_7 | B28: FALSE | C28: =IF(LEN(普通高端电阻测量通道!$I$167)>0,UPPER(普通高端电阻测量通道!$I$167),"") ->  | D28: 1 | E28: =INDEX(Parameters!$E$3:$E$18,$D28) -> 0 | F28: 1 | G28: =IF(LEN(普通高端电阻测量通道!$O$169)>0,UPPER(普通高端电阻测量通道!$O$169),"") ->  | H28: 4 | I28: 1 | J28: =INT(普通高端电阻测量通道!$W$179*IF($I28=2,10000,10)) -> 0 | K28: FALSE | L28: 2 | M28: =INT(普通高端电阻测量通道!$AG$186*IF($L28=2,10000,10)) -> 100000 | N28: 2 | O28: =INT(普通高端电阻测量通道!$U$186*IF($N28=2,10000,10)) -> 100000 | P28: 1 | Q28: =INT(普通高端电阻测量通道!$K$179*IF($P28=2,10000,10)) -> 0 | R28: FALSE | S28: 1 | T28: 0 | U28: =INT(普通高端电阻测量通道!$AP$186) -> 0
A29: R2_8 | B29: FALSE | C29: =IF(LEN(普通高端电阻测量通道!$I$194)>0,UPPER(普通高端电阻测量通道!$I$194),"") ->  | D29: 1 | E29: =INDEX(Parameters!$E$3:$E$18,$D29) -> 0 | F29: 1 | G29: =IF(LEN(普通高端电阻测量通道!$O$196)>0,UPPER(普通高端电阻测量通道!$O$196),"") ->  | H29: 4 | I29: 1 | J29: =INT(普通高端电阻测量通道!$W$206*IF($I29=2,10000,10)) -> 0 | K29: FALSE | L29: 2 | M29: =INT(普通高端电阻测量通道!$AG$213*IF($L29=2,10000,10)) -> 100000 | N29: 2 | O29: =INT(普通高端电阻测量通道!$U$213*IF($N29=2,10000,10)) -> 100000 | P29: 1 | Q29: =INT(普通高端电阻测量通道!$K$206*IF($P29=2,10000,10)) -> 0 | R29: FALSE | S29: 1 | T29: 0 | U29: =INT(普通高端电阻测量通道!$AP$213) -> 0
A30: R2_9 | B30: FALSE | C30: =IF(LEN(普通高端电阻测量通道!$I$221)>0,UPPER(普通高端电阻测量通道!$I$221),"") ->  | D30: 1 | E30: =INDEX(Parameters!$E$3:$E$18,$D30) -> 0 | F30: 1 | G30: =IF(LEN(普通高端电阻测量通道!$O$223)>0,UPPER(普通高端电阻测量通道!$O$223),"") ->  | H30: 4 | I30: 1 | J30: =INT(普通高端电阻测量通道!$W$233*IF($I30=2,10000,10)) -> 0 | K30: FALSE | L30: 2 | M30: =INT(普通高端电阻测量通道!$AG$240*IF($L30=2,10000,10)) -> 100000 | N30: 2 | O30: =INT(普通高端电阻测量通道!$U$240*IF($N30=2,10000,10)) -> 100000 | P30: 1 | Q30: =INT(普通高端电阻测量通道!$K$233*IF($P30=2,10000,10)) -> 0 | R30: FALSE | S30: 1 | T30: 0 | U30: =INT(普通高端电阻测量通道!$AP$240) -> 0
A31: R2_10 | B31: FALSE | C31: =IF(LEN(普通高端电阻测量通道!$I$248)>0,UPPER(普通高端电阻测量通道!$I$248),"") ->  | D31: 1 | E31: =INDEX(Parameters!$E$3:$E$18,$D31) -> 0 | F31: 1 | G31: =IF(LEN(普通高端电阻测量通道!$O$250)>0,UPPER(普通高端电阻测量通道!$O$250),"") ->  | H31: 4 | I31: 1 | J31: =INT(普通高端电阻测量通道!$W$260*IF($I31=2,10000,10)) -> 0 | K31: FALSE | L31: 2 | M31: =INT(普通高端电阻测量通道!$AG$267*IF($L31=2,10000,10)) -> 100000 | N31: 2 | O31: =INT(普通高端电阻测量通道!$U$267*IF($N31=2,10000,10)) -> 100000 | P31: 1 | Q31: =INT(普通高端电阻测量通道!$K$260*IF($P31=2,10000,10)) -> 0 | R31: FALSE | S31: 1 | T31: 0 | U31: =INT(普通高端电阻测量通道!$AP$267) -> 0
A32: R3_1 | B32: FALSE | C32: =IF(LEN(恒流低端电阻测量通道!$I$5)>0,UPPER(恒流低端电阻测量通道!$I$5),"") -> ADC_CH_BRIGHTNESS_R | D32: 11 | E32: =INDEX(Parameters!$E$3:$E$18,$D32) -> 10 | F32: 19 | G32: =INT(恒流低端电阻测量通道!$U14*1000) -> 72 | H32: 2 | I32: 1 | J32: =INT(恒流低端电阻测量通道!$W$17*IF($I32=2,10000,10)) -> 0 | K32: FALSE | L32: 2 | M32: =INT(恒流低端电阻测量通道!$AG$24*IF($L32=2,10000,10)) -> 100000 | N32: - | O32: - | P32: 1 | Q32: =INT(恒流低端电阻测量通道!$K$17*IF($P32=2,10000,10)) -> 0 | R32: FALSE | S32: 1 | T32: 0 | U32: =INT(恒流低端电阻测量通道!$AP$24) -> 0
A33: R3_2 | B33: FALSE | C33: =IF(LEN(恒流低端电阻测量通道!$I$32)>0,UPPER(恒流低端电阻测量通道!$I$32),"") ->  | D33: 1 | E33: =INDEX(Parameters!$E$3:$E$18,$D33) -> 0 | F33: 19 | G33: =INT(恒流低端电阻测量通道!$U41*1000) -> 100 | H33: 4 | I33: 1 | J33: =INT(恒流低端电阻测量通道!$W$44*IF($I33=2,10000,10)) -> 0 | K33: FALSE | L33: 2 | M33: =INT(恒流低端电阻测量通道!$AG$51*IF($L33=2,10000,10)) -> 100000 | N33: - | O33: - | P33: 1 | Q33: =INT(恒流低端电阻测量通道!$K$44*IF($P33=2,10000,10)) -> 0 | R33: FALSE | S33: 1 | T33: =IF($R33=TRUE,$S33,0) -> 0 | U33: =INT(恒流低端电阻测量通道!$AP$51) -> 0
A34: R3_3 | B34: FALSE | C34: =IF(LEN(恒流低端电阻测量通道!$I$59)>0,UPPER(恒流低端电阻测量通道!$I$59),"") ->  | D34: 1 | E34: =INDEX(Parameters!$E$3:$E$18,$D34) -> 0 | F34: 19 | G34: =INT(恒流低端电阻测量通道!$U68*1000) -> 100 | H34: 4 | I34: 1 | J34: =INT(恒流低端电阻测量通道!$W$71*IF($I34=2,10000,10)) -> 0 | K34: FALSE | L34: 2 | M34: =INT(恒流低端电阻测量通道!$AG$78*IF($L34=2,10000,10)) -> 100000 | N34: - | O34: - | P34: 1 | Q34: =INT(恒流低端电阻测量通道!$K$71*IF($P34=2,10000,10)) -> 0 | R34: FALSE | S34: 1 | T34: 0 | U34: =INT(恒流低端电阻测量通道!$AP$78) -> 0
A35: R3_4 | B35: FALSE | C35: =IF(LEN(恒流低端电阻测量通道!$I$86)>0,UPPER(恒流低端电阻测量通道!$I$86),"") ->  | D35: 1 | E35: =INDEX(Parameters!$E$3:$E$18,$D35) -> 0 | F35: 19 | G35: =INT(恒流低端电阻测量通道!$U95*1000) -> 100 | H35: 4 | I35: 1 | J35: =INT(恒流低端电阻测量通道!$W$98*IF($I35=2,10000,10)) -> 0 | K35: FALSE | L35: 2 | M35: =INT(恒流低端电阻测量通道!$AG$105*IF($L35=2,10000,10)) -> 100000 | N35: - | O35: - | P35: 1 | Q35: =INT(恒流低端电阻测量通道!$K$98*IF($P35=2,10000,10)) -> 0 | R35: FALSE | S35: 1 | T35: 0 | U35: =INT(恒流低端电阻测量通道!$AP$105) -> 0
A36: R3_5 | B36: FALSE | C36: =IF(LEN(恒流低端电阻测量通道!$I$113)>0,UPPER(恒流低端电阻测量通道!$I$113),"") ->  | D36: 1 | E36: =INDEX(Parameters!$E$3:$E$18,$D36) -> 0 | F36: 19 | G36: =INT(恒流低端电阻测量通道!$U122*1000) -> 100 | H36: 4 | I36: 1 | J36: =INT(恒流低端电阻测量通道!$W$125*IF($I36=2,10000,10)) -> 0 | K36: FALSE | L36: 2 | M36: =INT(恒流低端电阻测量通道!$AG$132*IF($L36=2,10000,10)) -> 100000 | N36: - | O36: - | P36: 1 | Q36: =INT(恒流低端电阻测量通道!$K$125*IF($P36=2,10000,10)) -> 0 | R36: FALSE | S36: 1 | T36: 0 | U36: =INT(恒流低端电阻测量通道!$AP$132) -> 0
A37: R3_6 | B37: FALSE | C37: =IF(LEN(恒流低端电阻测量通道!$I$140)>0,UPPER(恒流低端电阻测量通道!$I$140),"") ->  | D37: 1 | E37: =INDEX(Parameters!$E$3:$E$18,$D37) -> 0 | F37: 19 | G37: =INT(恒流低端电阻测量通道!$U149*1000) -> 100 | H37: 4 | I37: 1 | J37: =INT(恒流低端电阻测量通道!$W$152*IF($I37=2,10000,10)) -> 0 | K37: FALSE | L37: 2 | M37: =INT(恒流低端电阻测量通道!$AG$159*IF($L37=2,10000,10)) -> 100000 | N37: - | O37: - | P37: 1 | Q37: =INT(恒流低端电阻测量通道!$K$152*IF($P37=2,10000,10)) -> 0 | R37: FALSE | S37: 1 | T37: 0 | U37: =INT(恒流低端电阻测量通道!$AP$159) -> 0
A38: R3_7 | B38: FALSE | C38: =IF(LEN(恒流低端电阻测量通道!$I$167)>0,UPPER(恒流低端电阻测量通道!$I$167),"") ->  | D38: 1 | E38: =INDEX(Parameters!$E$3:$E$18,$D38) -> 0 | F38: 19 | G38: =INT(恒流低端电阻测量通道!$U176*1000) -> 100 | H38: 4 | I38: 1 | J38: =INT(恒流低端电阻测量通道!$W$179*IF($I38=2,10000,10)) -> 0 | K38: FALSE | L38: 2 | M38: =INT(恒流低端电阻测量通道!$AG$186*IF($L38=2,10000,10)) -> 100000 | N38: - | O38: - | P38: 1 | Q38: =INT(恒流低端电阻测量通道!$K$179*IF($P38=2,10000,10)) -> 0 | R38: FALSE | S38: 1 | T38: 0 | U38: =INT(恒流低端电阻测量通道!$AP$186) -> 0
A39: R3_8 | B39: FALSE | C39: =IF(LEN(恒流低端电阻测量通道!$I$194)>0,UPPER(恒流低端电阻测量通道!$I$194),"") ->  | D39: 1 | E39: =INDEX(Parameters!$E$3:$E$18,$D39) -> 0 | F39: 19 | G39: =INT(恒流低端电阻测量通道!$U203*1000) -> 100 | H39: 4 | I39: 1 | J39: =INT(恒流低端电阻测量通道!$W$206*IF($I39=2,10000,10)) -> 0 | K39: FALSE | L39: 2 | M39: =INT(恒流低端电阻测量通道!$AG$213*IF($L39=2,10000,10)) -> 100000 | N39: - | O39: - | P39: 1 | Q39: =INT(恒流低端电阻测量通道!$K$206*IF($P39=2,10000,10)) -> 0 | R39: FALSE | S39: 1 | T39: 0 | U39: =INT(恒流低端电阻测量通道!$AP$213) -> 0
A40: R3_9 | B40: FALSE | C40: =IF(LEN(恒流低端电阻测量通道!$I$221)>0,UPPER(恒流低端电阻测量通道!$I$221),"") ->  | D40: 1 | E40: =INDEX(Parameters!$E$3:$E$18,$D40) -> 0 | F40: 19 | G40: =INT(恒流低端电阻测量通道!$U230*1000) -> 100 | H40: 4 | I40: 1 | J40: =INT(恒流低端电阻测量通道!$W$233*IF($I40=2,10000,10)) -> 0 | K40: FALSE | L40: 2 | M40: =INT(恒流低端电阻测量通道!$AG$240*IF($L40=2,10000,10)) -> 100000 | N40: - | O40: - | P40: 1 | Q40: =INT(恒流低端电阻测量通道!$K$233*IF($P40=2,10000,10)) -> 0 | R40: FALSE | S40: 1 | T40: 0 | U40: =INT(恒流低端电阻测量通道!$AP$240) -> 0
A41: R3_10 | B41: FALSE | C41: =IF(LEN(恒流低端电阻测量通道!$I$248)>0,UPPER(恒流低端电阻测量通道!$I$248),"") ->  | D41: 1 | E41: =INDEX(Parameters!$E$3:$E$18,$D41) -> 0 | F41: 19 | G41: =INT(恒流低端电阻测量通道!$U257*1000) -> 100 | H41: 4 | I41: 1 | J41: =INT(恒流低端电阻测量通道!$W$260*IF($I41=2,10000,10)) -> 0 | K41: FALSE | L41: 2 | M41: =INT(恒流低端电阻测量通道!$AG$267*IF($L41=2,10000,10)) -> 100000 | N41: - | O41: - | P41: 1 | Q41: =INT(恒流低端电阻测量通道!$K$260*IF($P41=2,10000,10)) -> 0 | R41: FALSE | S41: 1 | T41: 0 | U41: =INT(恒流低端电阻测量通道!$AP$267) -> 0
K312: TRUE

Sheet Global_Config
A1: Item | B1: Configuration | C1: Note
A2: Version | B2: 1.1.0
A3: MCU part number | B3: BAT32G137
A4: VREF | B4: =INT(封面!$C$16*1000) -> 5000 | C4: Linke to cover page, do not modify
A5: Internal reference voltage | B5: 0 | C5: Unit: mV
A6: Internal reference voltage channel | B6: 0
A7: Calibrate VREF using internal reference voltage | B7: 0 | C7: 0 - N / 1 - Y
A8: Conversion service call cycle | B8: =INT(封面!$C$17) -> 2 | C8: Linke to cover page, do not modify
A9: Maximum sample interval | B9: =INT(封面!$C$18) -> 10 | C9: Linke to cover page, do not modify
A10: Power up debounce duration | B10: =INT(封面!$C$19) -> 10 | C10: Linke to cover page, do not modify
A11: Conversion wait | B11: 50000
A12: Engineer | B12: =IF(LEN(封面!$C$21)=0,"",封面!$C$21) -> ShiHao | C12: Linke to cover page, do not modify
